bitfinex/quotes_SOLUSD_20241021
["timestamp","ask_amount","ask_price","bid_price","bid_amount"]
[1729503809600,6.0074,166.46,166.45,2.40515114]
[1729503810130,36.6168,166.51,166.42,2.40515114]
[1729503810299,20.0,166.49,166.43,2.40515114]
[1729503810499,6.008,166.45,166.4,21.6751]
[1729503810705,6.008,166.45,166.41,2.405613]
[1729503810928,6.008,166.45,166.42,2.405613]
[1729503811118,15.015,166.5,166.43,26.182497]
[1729503811119,6.0081,166.44,166.43,26.182497]
[1729503811427,6.0081,166.44,166.43,26.18256449]
[1729503812402,6.0081,166.44,166.43,23.776884]
[1729503814431,6.0081,166.44,166.4,15.5615]
[1729503814739,6.25892844,166.48,166.36,6.011]
[1729503814740,6.0101,166.39,166.38,2.40592601]
[1729503815028,6.0101,166.39,166.33,2.40592601]
[1729503815029,6.0113,166.36,166.33,2.40592601]
[1729503815231,20.0,166.39,166.32,16.6111]
[1729503815232,6.0117,166.34,166.32,16.6111]
[1729503816007,6.0121,166.33,166.32,16.6111]
[1729503816207,20.0,166.37,166.29,2.4067407]
[1729503816414,6.0125,166.32,166.29,2.4067407]
[1729503817610,6.0125,166.32,166.29,23.776884]
[1729503818939,6.0125,166.32,166.31,23.776884]
[1729503819726,20.0,166.41,166.31,23.776884]
[1729503819933,6.0107,166.37,166.33,23.776884]
[1729503820351,6.0111,166.36,166.33,23.776884]
[1729503822835,6.0117,166.34,166.28,21.9407]
[1729503823044,6.0117,166.34,166.29,1.50444059]
[1729503824314,6.0117,166.34,166.3,23.776884]
[1729503824520,6.0135,166.3,166.29,23.776884]
[1729503824837,6.0135,166.3,166.28,15.3951]
[1729503826135,6.0124,166.33,166.28,15.3951]
[1729503826427,6.0126,166.32,166.28,15.3951]
[1729503826935,6.0126,166.32,166.29,23.776884]
[1729503829819,6.0132,166.3,166.29,23.776884]
[1729503830017,6.0129,166.31,166.29,23.776884]
[1729503832939,6.0125,166.32,166.29,23.776884]
[1729503833842,6.012,166.34,166.29,23.776884]
[1729503837528,6.0113,166.36,166.29,29.790284]
[1729503838724,20.0,166.38,166.29,29.790284]
[1729503838927,20.0,166.38,166.29,23.776884]
[1729503839245,6.0114,166.35,166.29,23.776884]
[1729503839820,20.0,166.38,166.29,23.776884]
[1729503840027,6.0117,166.35,166.29,23.776884]
[1729503844030,20.0,166.38,166.28,15.3951]
[1729503844239,6.0143,166.27,166.26,0.5970915]
[1729503844932,26.0143,166.27,166.26,0.5970915]
[1729503848333,26.1143,166.27,166.26,0.5970915]
[1729503848962,56.1143,166.27,166.26,0.5970915]
[1729503849433,56.0143,166.27,166.26,0.5970915]
[1729503850950,26.0143,166.27,166.26,0.5970915]
[1729503853037,6.0143,166.27,166.26,0.5970915]
[1729503854461,26.0143,166.27,166.26,0.5970915]
[1729503893004,6.0143,166.27,166.26,0.5970915]
[1729503895198,6.26449347,166.28,166.26,0.5970915]
[1729503895406,6.26449347,166.28,166.27,23.776884]
[1729503895710,1.04274222,166.35,166.27,40.86126588]
[1729503895999,15.027,166.37,166.27,39.356184]
[1729503896000,6.25289495,166.32,166.27,39.356184]
[1729503896183,6.0138,166.29,166.27,39.356184]
[1729503899590,6.0138,166.29,166.28,1.50512735]
[1729503900510,6.0139,166.28,166.27,39.356184]
[1729503900698,6.0139,166.28,166.27,40.86135178]
[1729503900892,6.0139,166.28,166.27,25.28205178]
[1729503901703,26.0139,166.28,166.27,1.50516778]
[1729503902010,26.0143,166.27,166.26,0.5970915]
[1729503903991,26.0143,166.27,166.26,2.10254661]
[1729503905510,26.0143,166.27,166.26,0.5970915]
[1729503906010,26.0143,166.27,166.26,2.10259645]
[1729503906707,32.26902188,166.27,166.26,2.10259645]
[1729503910525,32.26902188,166.27,166.26,2.10256884]
[1729503911395,32.26902188,166.27,166.19,0.66596583]
[1729503911396,26.25472188,166.27,166.19,0.66596583]
[1729503911704,6.0179,166.17,166.15,15.596]
[1729503911905,6.0179,166.17,166.16,2.40931811]
[1729503912293,26.0179,166.17,166.16,2.40931811]
[1729503912800,20.0,166.16,166.11,15.5646]
[1729503913000,6.0191,166.14,166.12,2.41000214]
[1729503913206,6.0191,166.14,166.13,2.41000214]
[1729503914399,6.0191,166.14,166.13,26.18688614]
[1729503914597,6.0191,166.14,166.13,23.776884]
[1729503914799,6.0191,166.14,166.12,23.776884]
[1729503915623,6.0193,166.13,166.12,23.776884]
[1729503916306,6.019,166.14,166.12,23.776884]
[1729503917208,6.0197,166.12,166.11,15.5646]
[1729503917597,6.0204,166.1,166.09,0.5970915]
[1729503918425,26.0204,166.1,166.09,0.5970915]
[1729503921461,20.0,166.1,166.09,0.5970915]
[1729503921603,20.0,166.14,166.09,0.5970915]
[1729503921807,6.0204,166.1,166.09,0.5970915]
[1729503924329,20.0,166.15,166.1,23.776884]
[1729503924523,6.0186,166.15,166.1,23.776884]
[1729503925729,26.019,166.14,166.1,23.776884]
[1729503928417,6.25744692,166.16,166.13,6.019]
[1729503928730,6.017,166.2,166.15,23.776884]
[1729503929122,6.0172,166.19,166.15,23.776884]
[1729503929324,6.0172,166.19,166.14,23.776884]
[1729503929924,20.0,166.18,166.14,23.776884]
[1729503930447,6.0176,166.18,166.14,23.776884]
[1729503932146,6.0179,166.17,166.13,23.776884]
[1729503932349,6.0179,166.17,166.12,23.776884]
[1729503932555,6.0192,166.14,166.09,31.7951915]
[1729503932833,6.0182,166.17,166.11,6.0201]
[1729503933420,6.0184,166.16,166.11,6.0201]
[1729503933730,20.0,166.19,166.1,21.0715]
[1729503933930,6.0185,166.16,166.1,21.0715]
[1729503934334,20.0,166.19,166.11,23.776884]
[1729503934544,6.0187,166.15,166.11,23.776884]
[1729503937438,6.0192,166.14,166.1,23.776884]
[1729503937651,6.0192,166.14,166.09,16.7439915]
[1729503937652,0.1,166.2,166.09,16.6439915]
[1729503937843,20.0,166.16,166.09,16.6439915]
[1729503938169,6.0204,166.11,166.09,16.6439915]
[1729503938638,6.0204,166.11,166.09,0.5970915]
[1729503939219,6.26212557,166.15,166.09,0.5970915]
[1729503939444,6.0204,166.1,166.09,0.5970915]
[1729503940942,26.0204,166.1,166.09,0.5970915]
[1729503942324,6.0201,166.11,166.09,0.5970915]
[1729503943949,6.0204,166.1,166.09,0.5970915]
[1729503946931,26.0204,166.1,166.09,0.5970915]
[1729503948157,48.4048,166.1,166.09,9.15e-05]
[1729503948464,48.5048,166.1,166.09,9.15e-05]
[1729503949148,49.54977161,166.1,166.09,9.15e-05]
[1729503949476,55.81813269,166.1,166.09,9.15e-05]
[1729503951049,54.57316108,166.1,166.09,9.15e-05]
[1729503951460,6.4904,166.01,166.0,0.0001]
[1729503951630,6.4904,166.01,165.87,5.5315374]
[1729503951631,20.0,165.96,165.88,1.50770515]
[1729503952139,20.0,165.96,165.89,1.5081234]
[1729503952337,20.0,165.93,165.86,15.7388]
[1729503952535,30.0,165.93,165.87,1.50830716]
[1729503952752,30.0,165.93,165.86,21.8679]
[1729503952942,30.0,165.93,165.87,1.60823052]
[1729503953176,30.0,165.93,165.86,15.8388]
[1729503953353,30.0,165.93,165.87,1.50823595]
[1729503953551,6.0263,165.94,165.87,1.50823595]
[1729503953873,6.0263,165.94,165.86,21.8679]
[1729503954360,6.0263,165.94,165.87,1.50827438]
[1729503954544,30.0,165.93,165.87,1.50827438]
[1729503954749,30.0,165.93,165.92,24.3739755]
[1729503954941,6.26434784,165.97,165.93,23.776884]
[1729503955946,12.28964784,165.97,165.93,23.776884]
[1729503956145,6.26434784,165.97,165.93,23.776884]
[1729503957140,12.28954784,165.97,165.93,23.776884]
[1729503957950,6.0252,165.97,165.93,23.776884]
[1729503958139,20.0,166.02,165.93,23.776884]
[1729503958443,20.0,166.02,165.94,6.0262]
[1729503958641,20.0,166.02,165.95,23.776884]
[1729503958841,6.0241,166.0,165.95,23.776884]
[1729503959255,20.0,166.03,165.95,23.776884]
[1729503959452,20.0,166.03,165.92,15.7640915]
[1729503959453,6.0243,166.0,165.94,23.776884]
[1729503960357,6.0246,165.99,165.94,23.776884]
[1729503960863,6.0246,165.99,165.96,23.776884]
[1729503961059,6.0255,165.96,165.92,0.5970915]
[1729503962662,6.0259,165.95,165.93,23.776884]
[1729503963452,6.0256,165.96,165.93,23.776884]
[1729503963672,6.0259,165.95,165.93,23.776884]
[1729503964251,20.0,166.0,165.92,0.5970915]
[1729503964450,20.1,166.03,165.92,0.5970915]
[1729503964451,6.0266,165.93,165.92,0.5970915]
[1729503965787,26.0266,165.93,165.92,0.5970915]
[1729503967152,26.0266,165.93,165.92,9.15e-05]
[1729503968545,6.0311,165.81,165.74,0.1]
[1729503968750,6.0294,165.86,165.78,27.9882]
[1729503968971,6.0285,165.88,165.81,6.0309]
[1729503969353,20.0,165.92,165.81,0.1]
[1729503969566,6.0288,165.87,165.81,0.1]
[1729503969769,6.0301,165.84,165.78,21.8565]
[1729503969974,6.0303,165.83,165.78,21.8565]
[1729503970267,6.031,165.81,165.78,21.8565]
[1729503970775,6.0304,165.83,165.78,21.8565]
[1729503971148,6.032,165.79,165.76,0.5970915]
[1729503971354,15.0748,165.84,165.76,0.5970915]
[1729503971355,20.0,165.83,165.76,0.5970915]
[1729503971576,6.0317,165.79,165.76,0.5970915]
[1729503971869,20.0,165.83,165.76,0.5970915]
[1729503972077,26.0306,165.82,165.77,6.0324]
[1729503972369,26.0306,165.82,165.76,6.6298915]
[1729503972559,26.0306,165.82,165.77,23.776884]
[1729503973973,6.0307,165.82,165.77,23.776884]
[1729503974371,6.0319,165.79,165.76,0.5970915]
[1729503974778,15.0729,165.86,165.76,0.5970915]
[1729503974779,6.0313,165.8,165.76,0.5970915]
[1729503974958,6.0303,165.83,165.77,6.0323]
[1729503975354,20.0,165.85,165.76,15.6789915]
[1729503975355,6.0299,165.84,165.76,15.6789915]
[1729503975580,6.0309,165.82,165.76,15.6789915]
[1729503975794,20.0,165.85,165.76,15.6789915]
[1729503975985,6.0306,165.82,165.76,21.7116915]
[1729503976876,7.07393701,165.88,165.82,6.0305]
[1729503977075,0.2,165.95,165.81,6.0309]
[1729503977076,6.0288,165.87,165.81,6.0309]
[1729503977255,0.1,165.94,165.8,6.031]
[1729503977455,0.1,165.93,165.79,15.0793]
[1729503977658,6.0294,165.86,165.79,21.1108]
[1729503977881,6.0294,165.86,165.8,23.776884]
[1729503978083,6.0296,165.85,165.79,21.1108]
[1729503978287,6.0296,165.85,165.8,23.776884]
[1729503981986,6.0296,165.85,165.8,29.808184]
[1729503982367,16.1002,165.92,165.8,23.776884]
[1729503982557,20.0,165.89,165.77,21.3123]
[1729503982767,6.0301,165.84,165.78,6.0319]
[1729503983074,6.0296,165.85,165.79,21.1104]
[1729503983506,6.03,165.84,165.79,21.1104]
[1729503984984,6.0295,165.85,165.8,29.807984]
[1729503986078,6.0299,165.84,165.8,29.807984]
[1729503986276,6.0295,165.85,165.8,29.807984]
[1729503987379,15.0629,165.98,165.89,23.776884]
[1729503987764,15.0629,165.98,165.9,15.1219]
[1729503987765,6.0251,165.97,165.9,15.1219]
[1729503987968,6.0255,165.96,165.91,23.776884]
[1729503989161,6.3851,165.95,165.82,15.0765]
[1729503989365,6.0283,165.89,165.84,9.5]
[1729503989700,6.0275,165.91,165.84,6.0295]
[1729503989878,6.0266,165.93,165.87,6.0288]
[1729503990074,20.0,165.94,165.84,15.0747]
[1729503990277,6.027,165.92,165.85,6.0295]
[1729503990472,6.027,165.92,165.86,6.029]
[1729503990875,20.0,165.97,165.86,6.029]
[1729503991175,6.0274,165.91,165.85,15.0736]
[1729503991574,20.0,165.92,165.83,0.1]
[1729503991776,20.0,165.92,165.87,6.0287]
[1729503991974,15.0626,165.98,165.86,15.0729]
[1729503992286,6.0266,165.93,165.87,23.776884]
[1729503992594,15.0626,165.98,165.87,23.776884]
[1729503992772,6.0258,165.96,165.9,6.0276]
[1729503992964,15.0591,166.02,165.91,23.776884]
[1729503993214,16.6431,166.04,165.9,6.057]
[1729503993215,6.0247,165.99,165.9,6.057]
[1729503993391,6.0247,165.99,165.93,6.0262]
[1729503993565,6.0248,165.98,165.93,23.776884]
[1729503995364,6.7262,166.03,165.9,6.057]
[1729503995664,6.026,165.95,165.9,6.057]
[1729503999382,6.0262,165.94,165.9,6.057]
[1729504000373,6.025,165.98,165.93,23.776884]
[1729504000689,6.024,166.01,165.95,6.0258]
[1729504000886,6.0241,166.0,165.95,6.0258]
[1729504001130,6.0244,165.99,165.95,23.776884]
[1729504001814,6.0244,165.99,165.95,24.226884]
[1729504003001,6.0244,165.99,165.95,23.776884]
[1729504003317,15.0576,166.03,165.95,29.802684]
[1729504004204,11.34885298,166.16,166.07,23.776884]
[1729504004412,6.6145,166.2,166.07,23.776884]
[1729504004604,6.6145,166.2,166.07,29.798084]
[1729504004605,1.04355282,166.19,166.07,29.798084]
[1729504004769,6.5145,166.2,166.09,6.0207]
[1729504005203,6.5145,166.2,166.08,0.1]
[1729504005422,6.017,166.2,166.09,0.1]
[1729504005873,6.0162,166.22,166.11,0.1]
[1729504006073,6.016,166.23,166.15,6.0185]
[1729504006279,6.0171,166.2,166.14,23.776884]
[1729504006682,0.1,166.27,166.14,23.776884]
[1729504006872,6.078,166.29,166.16,29.794984]
[1729504006873,6.0157,166.24,166.16,29.794984]
[1729504007081,6.0157,166.24,166.17,6.0177]
[1729504007676,6.0157,166.24,166.18,23.776884]
[1729504008689,20.0,166.23,166.18,23.776884]
[1729504009286,6.0149,166.26,166.18,29.794184]
[1729504009484,6.078,166.29,166.16,15.0456]
[1729504009485,6.078,166.29,166.2,21.0587]
[1729504010199,6.078,166.29,166.21,23.776884]
[1729504010393,6.0143,166.27,166.21,23.776884]
[1729504010700,6.0147,166.26,166.21,23.776884]
[1729504010907,6.0164,166.21,166.14,6.019]
[1729504012096,6.0164,166.21,166.15,23.776884]
[1729504012302,20.0,166.22,166.15,29.795384]
[1729504013581,6.0161,166.23,166.15,29.795384]
[1729504013781,6.078,166.29,166.15,29.795384]
[1729504013782,6.078,166.29,166.15,23.776884]
[1729504013976,26.0154,166.24,166.17,23.776884]
[1729504014383,20.0,166.24,166.18,23.776884]
[1729504014901,26.0154,166.24,166.18,23.776884]
[1729504017704,6.0149,166.26,166.18,6.0175]
[1729504018004,6.0149,166.26,166.19,23.776884]
[1729504018705,21.7235,166.33,166.21,40.029684]
[1729504018706,6.5682,166.33,166.21,40.029684]
[1729504019007,15.6262915,166.35,166.21,46.045984]
[1729504019207,6.0132,166.3,166.21,46.045984]
[1729504019407,6.0129,166.31,166.22,6.0161]
[1729504019598,6.0129,166.31,166.24,0.1]
[1729504020292,15.6262915,166.35,166.24,0.1]
[1729504020493,6.0125,166.32,166.24,0.1]
[1729504021217,6.0125,166.32,166.24,6.08]
[1729504021413,6.0125,166.32,166.25,23.776884]
[1729504022412,26.0117,166.34,166.26,6.0145]
[1729504022604,0.5970915,166.35,166.27,23.776884]
[1729504023223,0.5970915,166.35,166.28,23.776884]
[1729504023419,0.5970915,166.35,166.29,6.2135]
[1729504023593,0.5970915,166.35,166.32,6.0121]
[1729504023918,0.5970915,166.35,166.31,23.776884]
[1729504024518,6.0117,166.34,166.31,23.776884]
[1729504024720,0.5970915,166.35,166.25,12.4862]
[1729504024899,0.5970915,166.35,166.27,23.776884]
[1729504024900,20.0,166.33,166.27,23.776884]
[1729504025092,6.0131,166.31,166.27,23.776884]
[1729504025300,6.0131,166.31,166.26,23.776884]
[1729504025716,0.5970915,166.35,166.26,23.776884]
[1729504026028,20.0,166.33,166.26,23.776884]
[1729504026332,6.0128,166.32,166.26,23.776884]
[1729504027119,6.0128,166.31,166.26,23.776884]
[1729504028027,6.0127,166.32,166.26,23.776884]
[1729504028332,6.0129,166.31,166.26,23.776884]
[1729504032122,15.6264915,166.35,166.26,23.776884]
[1729504032333,6.0132,166.3,166.26,23.776884]
[1729504032625,15.6264915,166.35,166.26,23.776884]
[1729504032823,6.0126,166.32,166.26,23.776884]
[1729504033335,6.0129,166.31,166.26,29.791184]
[1729504034832,20.0,166.34,166.26,23.876884]
[1729504035033,20.0,166.34,166.28,23.776884]
[1729504035238,6.0126,166.32,166.28,23.776884]
[1729504035925,6.0126,166.32,166.27,23.776884]
[1729504036323,6.0128,166.31,166.27,23.776884]
[1729504037221,20.0,166.34,166.27,6.0143]
[1729504037222,6.0125,166.32,166.27,6.0143]
[1729504037421,6.0125,166.32,166.28,23.776884]
[1729504037821,6.0128,166.31,166.27,23.776884]
[1729504038919,6.6087915,166.35,166.3,29.789984]
[1729504039235,6.6087915,166.35,166.3,43.199984]
[1729504040235,0.5970915,166.35,166.31,0.1]
[1729504040448,0.5970915,166.35,166.32,23.776884]
[1729504041377,0.5970915,166.35,166.34,29.788584]
[1729504041956,0.5970915,166.35,166.34,36.207184]
[1729504042333,0.5970915,166.35,166.34,36.307184]
[1729504049029,15.0197,166.45,166.38,0.1]
[1729504049219,15.017,166.48,166.38,0.1]
[1729504049424,6.008,166.45,166.39,6.0098]
[1729504049752,6.0081,166.45,166.39,0.1]
[1729504049939,6.0081,166.45,166.4,6.0095]
[1729504050568,6.0073,166.47,166.41,6.0091]
[1729504050922,12.2639204,166.5,166.41,0.2]
[1729504051224,6.0064,166.49,166.45,23.776884]
[1729504051657,12.2639204,166.5,166.45,23.776884]
[1729504051658,6.006,166.5,166.45,29.784584]
[1729504051956,6.0056,166.51,166.45,29.784584]
[1729504052526,6.0061,166.5,166.45,29.784584]
[1729504053435,6.0056,166.51,166.45,23.776884]
[1729504053636,6.007,166.48,166.45,23.776884]
[1729504054253,6.007,166.48,166.44,23.776884]
[1729504055268,0.5970915,166.52,166.4,0.2]
[1729504055419,6.0077,166.46,166.4,6.0095]
[1729504055627,0.5970915,166.52,166.39,15.0248]
[1729504055843,6.0083,166.44,166.39,21.1346]
[1729504056351,6.0083,166.44,166.39,21.0346]
[1729504056523,6.0083,166.44,166.39,21.1346]
[1729504056723,15.0159,166.49,166.39,15.1248]
[1729504057028,6.0078,166.46,166.41,6.0089]
[1729504057227,6.0078,166.46,166.42,23.776884]
[1729504058045,0.5970915,166.52,166.42,23.776884]
[1729504058338,20.0,166.5,166.41,23.776884]
[1729504058749,6.0077,166.46,166.41,29.785984]
[1729504059739,20.0,166.5,166.38,6.659]
[1729504059947,6.0084,166.44,166.39,6.0098]
[1729504061249,6.0084,166.44,166.4,23.776884]
[1729504061835,15.015,166.5,166.41,23.776884]
[1729504062037,20.0,166.5,166.43,23.776884]
[1729504062634,6.0063,166.49,166.43,29.785284]
[1729504063336,6.0068,166.48,166.43,29.785284]
[1729504065428,6.0072,166.47,166.43,23.776884]
[1729504074641,20.0,166.5,166.43,23.776884]
[1729504074838,6.0077,166.46,166.43,23.776884]
[1729504076774,6.007,166.48,166.43,23.776884]
[1729504077060,20.0,166.49,166.43,23.776884]
[1729504077444,6.0071,166.47,166.43,23.776884]
[1729504078544,6.0077,166.46,166.43,23.776884]
[1729504078754,20.0,166.49,166.38,21.684]
[1729504079070,6.0086,166.43,166.39,1.50366405]
[1729504079252,6.008,166.45,166.4,6.0095]
[1729504080342,6.008,166.45,166.41,23.776884]
[1729504080553,20.0,166.47,166.41,23.776884]
[1729504080872,20.0,166.45,166.38,15.025]
[1729504081170,35.3313,166.47,166.4,15.0236]
[1729504082045,6.0067,166.48,166.44,23.776884]
[1729504082463,6.0063,166.49,166.43,23.776884]
[1729504082846,6.0067,166.48,166.43,23.776884]
[1729504083370,6.0072,166.47,166.43,23.776884]
[1729504087082,22.4688915,166.52,166.43,23.776884]
[1729504087083,6.0074,166.46,166.43,23.776884]
[1729504087949,35.0141,166.51,166.38,0.2]
[1729504087950,20.0,166.51,166.42,23.776884]
[1729504088147,20.0,166.51,166.36,6.97052988]
[1729504088148,6.0092,166.42,166.37,21.842]
[1729504088366,6.0092,166.42,166.38,1.5037584]
[1729504088666,6.0091,166.42,166.38,1.5037584]
[1729504088890,15.3137,166.45,166.38,1.5037584]
[1729504089058,6.0103,166.39,166.34,8.41761548]
[1729504089266,21.0298,166.43,166.35,1.50412165]
[1729504089450,6.0107,166.37,166.33,31.6741]
[1729504089652,20.0,166.42,166.34,1.50414013]
[1729504089861,15.0213,166.43,166.31,8.41923532]
[1729504089862,20.0,166.4,166.31,8.41923532]
[1729504090061,6.0106,166.38,166.32,1.50423952]
[1729504090264,20.0,166.4,166.33,1.50423952]
[1729504090458,6.0107,166.37,166.33,1.50423952]
[1729504090670,6.0107,166.37,166.34,1.50423952]
[1729504090867,6.0107,166.37,166.34,23.776884]
[1729504091059,6.0107,166.37,166.33,23.776884]
[1729504091250,20.0,166.4,166.34,1.50427917]
[1729504091251,6.011,166.36,166.34,1.50427917]
[1729504091479,6.011,166.36,166.31,2.40684785]
[1729504091686,6.011,166.36,166.32,1.50441844]
[1729504091972,6.011,166.36,166.3,21.0459]
[1729504092176,6.011,166.36,166.31,1.504426]
[1729504092356,6.011,166.36,166.32,1.50444915]
[1729504092556,6.0105,166.38,166.33,23.776884]
[1729504093691,6.0099,166.4,166.33,23.776884]
[1729504093871,21.0252,166.47,166.39,23.776884]
[1729504094068,6.0081,166.45,166.39,29.786684]
[1729504094478,6.0081,166.45,166.41,23.776884]
[1729504094856,6.0072,166.47,166.41,29.785984]
[1729504095055,0.5970915,166.52,166.43,23.776884]
[1729504095390,0.5970915,166.52,166.41,30.64741388]
[1729504095676,6.0066,166.49,166.44,23.776884]
[1729504096268,0.5970915,166.52,166.44,23.776884]
[1729504096480,6.0072,166.47,166.43,23.776884]
[1729504096977,0.5970915,166.52,166.43,23.776884]
[1729504097192,20.5970915,166.52,166.45,15.0194]
[1729504097491,20.5970915,166.52,166.48,23.776884]
[1729504097492,6.6023915,166.52,166.48,23.776884]
[1729504097689,6.0056,166.51,166.47,23.776884]
[1729504100385,6.0059,166.51,166.46,23.776884]
[1729504101064,6.0056,166.51,166.46,23.776884]
[1729504101263,6.0056,166.51,166.47,1.50346825]
[1729504101465,6.0056,166.51,166.48,23.776884]
[1729504101667,6.0056,166.51,166.46,23.776884]
[1729504101892,6.0056,166.51,166.48,23.776884]
[1729504102183,6.0056,166.51,166.46,23.776884]
[1729504102384,6.0056,166.51,166.48,23.776884]
[1729504102583,6.0065,166.49,166.46,23.776884]
[1729504102771,6.0068,166.48,166.42,12.0898]
[1729504102974,6.0068,166.48,166.43,3.90916757]
[1729504103171,6.0068,166.48,166.44,3.90917372]
[1729504103483,6.0068,166.48,166.45,3.90917372]
[1729504103691,6.0068,166.48,166.46,1.50353144]
[1729504103868,6.0068,166.48,166.42,12.0898]
[1729504104070,6.0068,166.48,166.44,23.776884]
[1729504104386,6.0068,166.48,166.46,23.776884]
[1729504104685,6.0068,166.48,166.47,1.50352754]
[1729504104869,6.0068,166.48,166.47,25.28041154]
[1729504105574,20.5970915,166.52,166.48,23.776884]
[1729504105769,6.0056,166.51,166.48,23.776884]
[1729504106363,6.0061,166.5,166.48,23.776884]
[1729504106687,6.0063,166.49,166.48,23.776884]
[1729504106982,6.0063,166.49,166.48,25.28026623]
[1729504107561,6.0063,166.49,166.48,23.776884]
[1729504107886,6.0072,166.47,166.42,6.74169702]
[1729504108066,6.0072,166.47,166.43,3.90904618]
[1729504108266,6.0072,166.47,166.44,3.90904618]
[1729504108594,6.0072,166.47,166.45,3.90904618]
[1729504108764,6.0067,166.48,166.46,1.5034793]
[1729504108963,6.0067,166.48,166.47,1.5034793]
[1729504109284,0.5970915,166.52,166.47,25.2803633]
[1729504109585,6.0064,166.49,166.48,23.776884]
[1729504113392,6.0064,166.49,166.48,25.28038584]
[1729504114485,6.0064,166.49,166.48,23.776884]
[1729504117697,0.5970915,166.52,166.41,15.78414112]
[1729504117698,6.0081,166.44,166.41,0.66124112]
[1729504117886,6.0081,166.44,166.38,21.076]
[1729504117887,6.0085,166.43,166.42,3.90939078]
[1729504118271,6.0078,166.45,166.42,3.90939078]
[1729504118595,6.0078,166.45,166.43,3.90939078]
[1729504118896,6.0078,166.45,166.44,1.50361184]
[1729504119376,6.0078,166.45,166.44,25.28049584]
[1729504120190,6.0063,166.49,166.45,23.776884]
[1729504120395,6.007,166.48,166.45,23.776884]
[1729504121200,6.0072,166.47,166.45,23.776884]
[1729504121793,6.0072,166.47,166.46,27.68602823]
[1729504125377,15.6110915,166.52,166.47,23.776884]
[1729504125581,15.6110915,166.52,166.49,23.776884]
[1729504125779,6.006,166.5,166.49,23.776884]
[1729504128497,20.0,166.5,166.42,0.66106473]
[1729504128694,20.0,166.5,166.39,0.1]
[1729504128695,6.008,166.45,166.43,3.90903469]
[1729504128901,6.008,166.45,166.44,3.90903469]
[1729504130000,6.008,166.45,166.44,27.68591869]
[1729504131880,6.0075,166.46,166.45,23.776884]
[1729504132102,6.0075,166.46,166.45,25.28035888]
[1729504133810,6.0075,166.46,166.45,23.776884]
[1729504134009,6.0075,166.46,166.45,25.28047251]
[1729504134679,6.0075,166.46,166.45,27.68619779]
[1729504135295,6.0075,166.46,166.45,25.28047251]
[1729504138009,6.0075,166.46,166.45,25.28053645]
[1729504139008,6.0073,166.47,166.45,25.28053645]
[1729504139208,6.0073,166.47,166.46,25.28053645]
[1729504143894,6.0073,166.47,166.46,25.28050635]
[1729504144512,6.0066,166.49,166.47,23.776884]
[1729504144705,6.0066,166.49,166.48,1.5034608]
[1729504144889,6.0066,166.49,166.48,25.2803448]
[1729504147315,0.5970915,166.52,166.48,25.2803448]
[1729504147519,6.006,166.5,166.49,23.776884]
[1729504150494,6.006,166.5,166.49,25.28029576]
[1729504151211,6.006,166.5,166.49,23.776884]
[1729504151396,6.006,166.5,166.49,25.28029396]
[1729504153109,6.006,166.5,166.49,27.68576307]
[1729504153812,6.0056,166.51,166.49,30.69253717]
[1729504154118,0.5970915,166.52,166.51,23.776884]
[1729504154312,0.5970915,166.52,166.51,30.69247274]
[1729504154816,0.5970915,166.52,166.51,23.776884]
[1729504154992,0.5970915,166.52,166.51,31.3540476]
[1729504155312,0.5970915,166.52,166.51,59.57128175]
[1729504155722,0.5970915,166.52,166.51,79.67128175]